bitfinex/quotes_ETHUSD_20250904
["timestamp","ask_amount","ask_price","bid_price","bid_amount"]
[1757019398466,7.17595795,4313.7,4313.6,0.004]
[1757019398632,7.96795795,4313.7,4313.6,0.004]
[1757019400661,7.48005795,4313.7,4313.6,0.004]
[1757019401451,7.93285795,4313.7,4313.6,0.004]
[1757019404486,11.81085795,4313.7,4313.6,0.004]
[1757019405570,11.35805795,4313.7,4313.6,0.004]
[1757019407564,10.89585795,4313.7,4313.6,0.004]
[1757019407888,11.78215795,4313.7,4313.6,0.004]
[1757019410792,11.32935795,4313.7,4313.6,0.004]
[1757019412482,10.89585795,4313.7,4313.6,0.004]
[1757019413619,5.93405795,4313.7,4313.6,0.004]
[1757019413791,10.12615795,4313.7,4313.6,0.004]
[1757019414217,10.55965795,4313.7,4313.6,0.004]
[1757019415600,10.12615795,4313.7,4313.6,0.004]
[1757019418615,10.55965795,4313.7,4313.6,0.004]
[1757019419608,10.12615795,4313.7,4313.6,0.004]
[1757019420005,10.91815795,4313.7,4313.6,0.004]
[1757019420211,11.35165795,4313.7,4313.6,0.004]
[1757019420415,10.91815795,4313.7,4313.6,0.004]
[1757019420585,11.35165795,4313.7,4313.6,0.004]
[1757019422192,10.91815795,4313.7,4313.6,0.004]
[1757019423439,10.91815795,4313.7,4313.5,0.004]
[1757019423440,5.31824925,4313.6,4313.5,0.004]
[1757019423595,5.81811169,4313.6,4313.5,0.004]
[1757019423795,6.13121169,4313.6,4313.5,0.004]
[1757019426025,5.81811169,4313.6,4313.5,0.004]
[1757019427711,6.13121169,4313.6,4313.5,0.004]
[1757019428347,2.318303,4313.5,4313.4,0.004]
[1757019428532,9.69716544,4313.5,4313.4,0.004]
[1757019428728,17.72259171,4313.5,4313.4,0.004]
[1757019428935,18.16709171,4313.5,4313.4,0.004]
[1757019429344,19.83866531,4313.5,4313.4,0.004]
[1757019429542,20.33456531,4313.5,4313.4,0.004]
[1757019430350,19.54256531,4313.5,4313.4,0.004]
[1757019431143,19.83866531,4313.5,4313.4,0.004]
[1757019431524,19.39416531,4313.5,4313.4,0.004]
[1757019431854,19.83866531,4313.5,4313.4,0.004]
[1757019432253,17.72259171,4313.5,4313.4,0.004]
[1757019432430,17.40949171,4313.5,4313.4,0.004]
[1757019432754,17.40949171,4313.5,4313.4,0.3027]
[1757019433134,5.81816544,4313.5,4313.4,1.2103]
[1757019433338,9.69716544,4313.5,4313.4,1.2103]
[1757019433534,15.57832633,4313.5,4313.4,1.2103]
[1757019434826,11.69932633,4313.5,4313.4,0.47]
[1757019435025,15.57832633,4313.5,4313.4,1.2103]
[1757019436954,15.57832633,4313.5,4313.4,0.7687]
[1757019437251,11.69932633,4313.5,4313.4,0.3027]
[1757019437434,15.57832633,4313.5,4313.4,0.3027]
[1757019438055,15.57832633,4313.5,4313.4,0.7687]
[1757019438351,15.57832633,4313.5,4313.4,0.47]
[1757019438551,2.31841049,4313.3,4313.2,0.4456]
[1757019438862,9.69627293,4313.3,4313.2,0.4456]
[1757019439062,9.69627293,4313.3,4313.2,0.7443]
[1757019440469,9.69627293,4313.3,4313.2,1.2103]
[1757019443895,9.69627293,4313.3,4313.2,0.7443]
[1757019444186,9.69627293,4313.3,4313.2,0.3027]
[1757019445445,9.69627293,4313.3,4313.2,1.2103]
[1757019445641,6.69627293,4313.3,4313.2,1.2103]
[1757019446691,2.81827293,4313.3,4313.2,1.2103]
[1757019446871,0.61586244,4313.3,4313.2,1.33253]
[1757019447175,0.61586244,4313.3,4313.2,2.02971882]
[1757019450658,0.49986244,4313.3,4313.2,2.02971882]
[1757019464777,0.49986244,4313.3,4313.2,1.97971882]
[1757019465270,0.49986244,4313.3,4313.2,6.69018306]
[1757019465469,0.001,4313.5,4313.4,2.31835674]
[1757019465714,0.001,4313.5,4313.4,7.49601072]
[1757019465997,0.001,4313.5,4313.4,8.76831072]
[1757019466296,0.001,4313.5,4313.4,8.86124915]
[1757019469102,0.001,4313.5,4313.4,11.23124915]
[1757019476513,0.001,4313.5,4313.4,9.95894915]
[1757019477320,0.001,4313.5,4313.4,10.27484915]
[1757019478925,0.001,4313.5,4313.4,11.23124915]
[1757019479232,0.3089,4313.5,4313.4,2.46293843]
[1757019479432,1.72898765,4313.5,4313.4,6.33893843]
[1757019479948,1.72898765,4313.5,4313.4,0.09293843]
[1757019480111,1.72898765,4313.5,4313.4,3.96893843]
[1757019480112,4.04729065,4313.5,4313.4,3.96893843]
[1757019482936,1.72898765,4313.5,4313.4,3.96893843]
[1757019483740,1.25418765,4313.5,4313.4,3.96893843]
[1757019486129,1.72898765,4313.5,4313.4,3.96893843]
[1757019486319,4.04729065,4313.5,4313.4,3.96893843]
[1757019486723,4.04729065,4313.5,4313.4,3.876]
[1757019487827,2.31841049,4313.3,4313.1,0.004]
[1757019488016,0.50048765,4313.2,4313.1,0.004]
[1757019488218,1.72798765,4313.2,4313.1,4.57621312]
[1757019489439,4.16105189,4313.2,4313.1,0.004]
[1757019490136,7.95305189,4313.2,4313.1,0.004]
[1757019490336,2.31857175,4313.0,4312.9,0.004]
[1757019490524,0.50048765,4313.0,4312.9,0.004]
[1757019490726,0.61648765,4313.0,4312.9,0.004]
[1757019491552,0.61648765,4313.0,4312.9,0.0969706]
[1757019493646,0.92838765,4313.0,4312.9,0.0969706]
[1757019494223,1.37178765,4313.0,4312.9,0.0969706]
[1757019496251,3.6903594,4313.0,4312.9,0.0969706]
[1757019496557,4.1535594,4313.0,4312.9,0.0969706]
[1757019498639,1.83498765,4313.0,4312.9,0.0969706]
[1757019499163,1.37178765,4313.0,4312.9,0.0969706]
[1757019500167,3.11062551,4312.9,4312.8,0.029]
[1757019500467,5.81911316,4312.9,4312.8,0.029]
[1757019500973,6.13101316,4312.9,4312.8,0.029]
[1757019501191,6.57441316,4312.9,4312.8,0.029]
[1757019501672,7.03761316,4312.9,4312.8,0.029]
[1757019503066,3.57441316,4312.9,4312.8,0.029]
[1757019507258,3.13101316,4312.9,4312.8,0.029]
[1757019508652,3.57441316,4312.9,4312.8,0.029]
[1757019510182,3.69041316,4312.9,4312.8,0.029]
[1757019515193,3.24701316,4312.9,4312.8,0.029]
[1757019521556,2.93511316,4312.9,4312.8,0.029]
[1757019521761,2.93511316,4312.9,4312.8,0.3256]
[1757019521958,0.50048765,4312.9,4312.8,1.3571]
[1757019522160,0.50048765,4312.9,4312.8,5.38477928]
[1757019522359,0.001,4313.0,4312.9,2.31862551]
[1757019522586,0.50203224,4313.0,4312.9,3.24921176]
[1757019522904,0.001,4313.0,4312.9,3.52262551]
[1757019523066,0.001,4313.0,4312.9,5.49951738]
[1757019523482,0.001,4313.0,4312.9,9.37451738]
[1757019524694,0.001,4313.0,4312.9,9.37451738]
[1757019528300,0.001,4313.0,4312.9,11.74451738]
[1757019530779,0.001,4313.0,4312.9,12.37351738]
[1757019531812,0.001,4313.0,4312.9,8.49951738]
[1757019531997,0.001,4313.0,4312.9,12.37351738]
[1757019535811,0.001,4313.0,4312.9,8.49951738]
[1757019536007,0.001,4313.0,4312.9,12.37351738]
[1757019537012,0.001,4313.0,4312.9,11.46611738]
[1757019537215,0.2941,4313.0,4312.9,11.16951738]
[1757019537519,0.001,4313.0,4312.9,10.89865775]
[1757019539189,0.001,4313.0,4312.9,20.36299723]
[1757019539392,0.001,4313.0,4312.9,21.15499723]
[1757019539801,0.001,4313.0,4312.9,18.78499723]
[1757019540114,0.001,4313.0,4312.9,21.15499723]
[1757019540316,0.001,4313.0,4312.9,23.4229052]
[1757019540823,0.001,4313.0,4312.9,23.5389052]
[1757019546508,0.001,4313.0,4312.9,19.6649052]
[1757019546827,0.001,4313.0,4312.9,23.5379052]
[1757019549207,0.001,4313.5,4313.4,5.31835674]
[1757019549408,0.001,4313.5,4313.4,10.88405261]
[1757019549725,0.001,4313.5,4313.4,11.00005261]
[1757019550306,0.001,4313.5,4313.4,11.43355261]
[1757019551334,0.001,4313.5,4313.4,12.21725261]
[1757019551530,0.001,4313.5,4313.4,12.64895261]
[1757019553110,0.001,4313.5,4313.4,8.77595261]
[1757019553336,0.001,4313.5,4313.4,12.64895261]
[1757019555118,0.001,4313.5,4313.4,14.10935261]
[1757019555546,0.001,4313.5,4313.4,19.9851443]
[1757019557157,0.001,4313.5,4313.4,20.7771443]
[1757019557357,0.001,4313.5,4313.4,21.6857443]
[1757019557943,0.001,4313.5,4313.4,20.7771443]
[1757019560153,0.2964,4313.5,4313.4,9.92955261]
[1757019560464,0.7289,4313.5,4313.4,19.6783443]
[1757019563882,0.7289,4313.5,4313.4,13.80255261]
[1757019564188,0.7289,4313.5,4313.4,19.6783443]
[1757019565582,1.2137,4313.5,4313.4,5.23685674]
[1757019565760,1.2137,4313.5,4313.4,9.10885674]
[1757019566354,1.2137,4313.5,4313.4,12.10885674]
[1757019566872,1.2137,4313.5,4313.4,9.10885674]
[1757019568057,1.71430674,4313.5,4313.4,9.10885674]
[1757019568258,1.2137,4313.5,4313.4,9.10885674]
[1757019569072,1.71434092,4313.5,4313.4,9.10885674]
[1757019569273,1.2137,4313.5,4313.4,9.10885674]
[1757019569790,1.2137,4313.5,4313.4,6.73985674]
[1757019575091,1.2137,4313.5,4313.4,0.5495]
[1757019575289,1.71385104,4313.5,4313.4,6.62385674]
[1757019575597,1.2137,4313.5,4313.4,6.62385674]
[1757019580284,0.7289,4313.5,4313.4,6.62385674]
[1757019580704,1.2051,4313.5,4313.4,6.62385674]
[1757019581383,1.2051,4313.5,4313.4,4.3055]
[1757019581583,1.70502652,4313.5,4313.4,4.3055]
[1757019586341,1.70502652,4313.5,4313.4,6.62385674]
[1757019587137,1.70502652,4313.5,4313.4,4.3055]
[1757019587339,1.70502652,4313.5,4313.4,6.62385674]
[1757019587642,1.70502652,4313.5,4313.4,4.3055]
[1757019588551,1.70502652,4313.5,4313.4,6.62385674]
[1757019588836,1.70502652,4313.5,4313.4,4.3055]
[1757019589895,1.70502652,4313.5,4313.4,0.4335]
[1757019590099,1.70502652,4313.5,4313.4,4.3065]
[1757019590529,1.70502652,4313.5,4313.4,0.4335]
[1757019590830,1.70502652,4313.5,4313.4,4.3065]
[1757019592518,0.50092652,4313.5,4313.4,4.3065]
[1757019592935,0.50092652,4313.5,4313.4,6.62485674]
[1757019593403,1.76382652,4313.5,4313.4,0.4335]
[1757019593603,0.81362652,4313.5,4313.4,3.872]
[1757019593841,0.50092652,4313.5,4313.4,7.93634143]
[1757019594008,0.001,4313.5,4313.4,7.93634143]
[1757019594209,0.001,4313.5,4313.4,8.43726795]
[1757019594410,0.001,4313.5,4313.4,13.14626795]
[1757019595505,0.001,4313.5,4313.4,8.80876795]
[1757019595730,0.001,4313.5,4313.4,12.19366795]
[1757019596115,0.001,4313.5,4313.4,8.32166795]
[1757019596321,0.3137,4313.5,4313.4,0.50092652]
[1757019596612,1.76468943,4313.5,4313.4,4.37292652]
[1757019596812,1.76468943,4313.5,4313.4,0.50092652]
[1757019597045,1.76468943,4313.5,4313.4,3.872]
[1757019600653,0.81448943,4313.5,4313.4,3.872]
[1757019601745,1.76468943,4313.5,4313.4,3.872]
[1757019602555,1.28848943,4313.5,4313.4,3.872]
[1757019603456,1.76468943,4313.5,4313.4,3.872]
[1757019603656,1.76468943,4313.5,4313.1,2.40617586]
[1757019603826,2.31846424,4313.2,4313.1,1.709]
[1757019604026,2.318518,4313.1,4313.0,0.004]
[1757019604222,9.00779912,4313.1,4313.0,0.004]
[1757019604426,4.08220743,4313.1,4313.0,0.004]
[1757019606676,1.76368943,4313.1,4313.0,0.004]
[1757019607169,0.50078943,4313.1,4313.0,3.876]
[1757019607324,0.50078943,4313.1,4313.0,7.84186939]
[1757019607528,0.50078943,4313.1,4313.0,8.53905173]
[1757019609866,0.50078943,4313.1,4313.0,5.26787998]
[1757019610072,0.50078943,4313.1,4313.0,4.86768234]
[1757019610247,0.50078943,4313.1,4313.0,7.18725409]
[1757019610641,1.29328943,4313.1,4313.0,0.70118234]
[1757019610986,0.50078943,4313.1,4313.0,3.63618234]
[1757019612368,1.29328943,4313.1,4313.0,3.63618234]
[1757019612585,1.73298943,4313.1,4313.0,0.70118234]
[1757019612772,1.73298943,4313.1,4313.0,3.877]
[1757019613851,4.05150743,4313.1,4313.0,0.004]
[1757019617143,3.11062551,4312.9,4312.8,0.029]
[1757019617342,6.11067928,4312.8,4312.7,1e-08]
[1757019617649,15.02064381,4312.8,4312.7,1e-08]
[1757019618542,6.95496959,4312.8,4312.7,1e-08]
[1757019618878,10.92466871,4312.8,4312.7,1e-08]
[1757019619043,3.57326871,4312.8,4312.7,1e-08]
[1757019619389,3.13356871,4312.8,4312.7,1e-08]
[1757019621245,0.81488943,4312.8,4312.7,1e-08]
[1757019621458,3.13356871,4312.8,4312.7,1e-08]
[1757019621673,2.81946871,4312.8,4312.7,1e-08]
[1757019621978,3.13356871,4312.8,4312.7,1e-08]
[1757019623583,2.81946871,4312.8,4312.7,1e-08]
[1757019623789,3.13356871,4312.8,4312.7,1e-08]
[1757019624980,3.57326871,4312.8,4312.7,1e-08]
[1757019625493,3.13356871,4312.8,4312.7,1e-08]
[1757019625863,3.57326871,4312.8,4312.7,1e-08]
[1757019626770,4.05166871,4312.8,4312.7,1e-08]
[1757019629701,3.13356871,4312.8,4312.7,1e-08]
[1757019635111,0.61678943,4312.8,4312.7,1.22810001]
[1757019639239,0.61678943,4312.8,4312.7,3.54683305]
[1757019639623,0.61678943,4312.8,4312.7,1.22810001]
[1757019641914,0.61678943,4312.8,4312.7,3.54683305]
[1757019642121,0.61678943,4312.8,4312.7,1.22810001]
[1757019643800,0.61678943,4312.8,4312.7,0.29930001]
[1757019646402,0.91708943,4312.8,4312.7,1e-08]
[1757019646613,0.61678943,4312.8,4312.7,1e-08]
[1757019646813,0.91708943,4312.8,4312.7,1e-08]
[1757019648735,0.61678943,4312.8,4312.7,1e-08]
[1757019649031,0.61678943,4312.8,4312.7,0.29930001]
[1757019649902,0.61778943,4312.8,4312.7,0.29930001]
[1757019651742,0.61778943,4312.8,4312.7,3.52813305]
[1757019652236,0.61778943,4312.8,4312.7,1.20940001]
[1757019652424,0.61778943,4312.8,4312.7,3.52813305]
[1757019653332,0.61778943,4312.8,4312.7,1.20940001]
[1757019653950,0.61778943,4312.8,4312.7,3.52813305]
[1757019655940,0.61778943,4312.8,4312.7,3.08153305]
[1757019656108,0.61778943,4312.8,4312.7,3.52813305]
[1757019657812,0.61778943,4312.8,4312.7,2.61803305]
[1757019662262,0.50178943,4312.8,4312.7,4.50132971]
[1757019662566,0.001,4312.8,4312.7,7.61732971]
[1757019662761,0.001,4312.8,4312.7,8.11911914]
[1757019677593,0.001,4312.8,4312.7,13.99737044]
[1757019687000,0.001,4312.8,4312.7,6.90971914]
[1757019687199,1.2134,4312.8,4312.7,9.80752248]
[1757019689903,0.7641,4312.8,4312.7,9.80752248]
[1757019690077,1.2134,4312.8,4312.7,9.80752248]
[1757019690278,1.2134,4312.8,4312.7,2.93652248]
[1757019690475,1.71416749,4312.8,4312.7,6.69152248]
[1757019697149,1.71416749,4312.8,4312.7,4.37278944]
[1757019697302,1.71416749,4312.8,4312.7,3.87100001]
[1757019697497,9.91109807,4312.8,4312.7,1e-08]
[1757019697701,9.91109807,4312.8,4312.7,3.87100001]
[1757019697954,10.02709807,4312.8,4312.7,3.87100001]
[1757019698103,9.87709807,4312.8,4312.7,3.87100001]
[1757019698303,1.68016749,4312.8,4312.7,3.87100001]
[1757019698502,3.99884677,4312.8,4312.7,3.87100001]
[1757019698976,1.68016749,4312.8,4312.7,3.87100001]
[1757019701439,3.99884677,4312.8,4312.7,1e-08]
[1757019701644,9.87709807,4312.8,4312.7,1e-08]
[1757019701842,9.87809807,4312.8,4312.7,1e-08]
[1757019703341,9.9710877,4312.8,4312.7,1e-08]
[1757019704183,10.7630877,4312.8,4312.7,1e-08]
[1757019704566,13.7630877,4312.8,4312.7,1e-08]
[1757019704772,6.11073304,4312.7,4312.6,0.004]
[1757019704969,10.48250053,4312.7,4312.6,0.004]
[1757019705161,11.67860053,4312.7,4312.6,0.004]
[1757019705679,13.38760053,4312.7,4312.6,0.004]
[1757019705882,13.69122137,4312.7,4312.6,0.004]
[1757019706983,6.11084057,4312.5,4312.4,1e-08]
[1757019707172,12.48985936,4312.5,4312.4,1e-08]
[1757019707370,13.80195936,4312.5,4312.4,1e-08]
[1757019707881,14.1055802,4312.5,4312.4,1e-08]
[1757019708584,6.11089435,4312.4,4312.3,1e-08]
[1757019708883,6.11089435,4312.4,4312.1,1e-08]
[1757019708884,2.3190019,4312.2,4312.1,1e-08]
[1757019709087,6.53939023,4312.2,4312.1,1e-08]
[1757019709385,1.09562084,4312.1,4310.8,0.11801298]
[1757019709552,13.68023771,4312.0,4310.8,0.11801298]
[1757019709752,17.19544717,4312.0,4310.8,0.11801298]
[1757019709948,17.31346015,4312.0,4310.8,0.11801298]
[1757019710183,17.31346015,4312.0,4310.8,0.025]
[1757019710184,6.11116324,4311.9,4310.8,0.025]
[1757019710372,7.93616324,4311.9,4311.8,1e-08]
[1757019710572,9.13226324,4311.9,4311.8,1e-08]
[1757019710771,9.49604517,4311.9,4311.8,1e-08]
[1757019713353,9.05564517,4311.9,4311.8,1e-08]
[1757019713554,9.05564517,4311.9,4311.8,1.20540001]
[1757019713555,0.116,4311.9,4311.8,1.20540001]
[1757019713760,0.116,4311.9,4311.8,3.52461704]
[1757019713963,0.116,4311.9,4311.8,4.50876387]
[1757019714187,0.116,4311.9,4311.8,2.18954684]
[1757019714399,0.116,4311.9,4311.8,4.50876387]
[1757019714895,0.116,4311.9,4311.8,2.18954684]
[1757019715395,2.31874067,4312.7,4312.0,2.31909199]
[1757019715576,2.31874067,4312.7,4312.6,0.2885]
[1757019715892,2.31874067,4312.7,4312.6,0.7271]
[1757019716275,2.31881024,4312.6,4312.4,0.4783]
[1757019716476,2.31881024,4312.6,4312.4,0.9169]
[1757019716698,2.31881024,4312.6,4312.5,0.2885]
[1757019717201,2.43474259,4312.7,4312.5,0.2885]
[1757019717367,2.31886024,4312.5,4312.2,0.69735899]
[1757019717771,2.31886024,4312.5,4312.4,0.2885]
[1757019718395,2.43486024,4312.5,4312.4,0.2885]
[1757019718770,0.116,4312.5,4312.4,0.2885]
[1757019718977,0.116,4312.5,4312.4,1.2054]
[1757019721482,0.61445988,4312.5,4312.4,1.2054]
[1757019721893,0.61445988,4312.5,4312.4,0.2885]
[1757019722095,2.93330045,4312.5,4312.2,0.69735899]
[1757019722290,0.49845988,4312.4,4312.2,0.69735899]
[1757019722528,0.49857209,4312.3,4312.2,0.69735899]
[1757019723028,0.49857209,4312.3,4312.2,1.42445899]
[1757019723187,0.49857209,4312.3,4312.2,1.90275899]
[1757019725508,0.49857209,4312.3,4312.2,1.2054]
[1757019727980,0.49857209,4312.3,4312.2,3.5244019]
[1757019728181,0.116,4312.5,4312.3,2.31891688]
[1757019728412,0.49916322,4312.4,4312.3,0.9169]
[1757019728611,0.49916322,4312.4,4312.3,1.2054]
[1757019728845,0.49916322,4312.4,4312.3,3.52434812]
[1757019731033,0.49916322,4312.4,4312.3,4.17334676]
[1757019731237,0.026,4312.8,4312.7,2.31873304]
[1757019731422,0.026,4312.8,4312.7,3.871]
[1757019731617,0.026,4312.8,4312.7,5.1369]
[1757019731922,0.026,4312.8,4312.7,7.57163304]
[1757019733941,0.026,4312.8,4312.7,5.2529]
[1757019737646,0.026,4312.8,4312.7,4.7874]
[1757019737811,0.026,4312.8,4312.7,4.2876]
[1757019738214,0.3154,4312.8,4312.7,0.116]
[1757019738536,1.27086356,4312.8,4312.7,0.116]
[1757019738741,0.81436356,4312.8,4312.5,3.871]
[1757019738939,0.116,4312.6,4312.5,3.871]
[1757019739145,0.4054,4312.6,4312.5,3.871]
[1757019739438,0.4054,4312.6,4312.5,4.56828605]
[1757019740510,0.61526485,4312.6,4312.5,4.56828605]
[1757019740710,0.61526485,4312.6,4312.5,3.871]
[1757019740937,0.61526485,4312.6,4312.0,0.6158]
[1757019740938,1.36116485,4312.6,4312.0,0.116]
[1757019741113,2.43498604,4312.3,4312.0,3.871]
[1757019741312,0.2894,4312.1,4312.0,3.871]
[1757019741518,0.78866485,4312.1,4312.0,3.871]
[1757019749101,0.49926485,4312.1,4312.0,4.1716]
[1757019752903,0.49926485,4312.1,4312.0,3.871]
[1757019753195,0.78866485,4312.1,4312.0,3.871]
[1757019753394,0.49926485,4312.1,4312.0,3.871]
[1757019753594,0.49926485,4312.1,4312.0,4.1716]
[1757019754199,1.24516485,4312.1,4311.8,1e-08]
[1757019754407,3.8432159,4312.0,4311.8,1e-08]
[1757019754720,0.49926485,4311.9,4311.8,1e-08]
[1757019755009,4.01662809,4311.9,4311.8,1e-08]
[1757019755684,1.69746485,4311.9,4311.8,1e-08]
[1757019755879,3.56432809,4311.9,4311.8,1e-08]
[1757019756081,4.01662809,4311.9,4311.8,1e-08]
[1757019756399,4.01662809,4311.9,4311.8,0.76610001]
[1757019756400,0.49926485,4311.9,4311.8,0.76610001]
[1757019756590,0.49926485,4311.9,4311.8,1.26590001]
[1757019756778,0.49926485,4311.9,4311.8,5.13690001]
[1757019758812,0.49926485,4311.9,4311.8,4.63710001]
[1757019760494,0.49926485,4311.9,4311.8,6.95631704]
[1757019760818,0.49926485,4311.9,4311.8,7.42801704]
[1757019761002,0.49926485,4311.9,4311.8,10.77275642]
[1757019761206,0.116,4312.6,4312.4,2.31885606]
[1757019761405,0.50009321,4312.5,4312.4,2.31885606]
[1757019761712,0.50009321,4312.5,4312.4,6.49275606]
[1757019761884,0.50009321,4312.5,4312.4,7.41425606]
[1757019768517,0.50109321,4312.5,4312.4,7.41425606]
[1757019769189,0.50109321,4312.5,4312.4,8.39918111]
[1757019780945,0.81160326,4312.5,4312.4,0.98492505]
[1757019781130,1.73180326,4312.5,4312.4,3.87]
[1757019781945,1.24360326,4312.5,4312.4,6.49179435]
[1757019782113,1.24360326,4312.5,4312.4,7.41329435]
[1757019782114,0.001,4312.5,4312.4,7.41329435]
[1757019782308,0.001,4312.5,4312.4,9.07876107]
[1757019786642,0.001,4312.5,4312.4,12.07876107]
[1757019789734,0.001,4312.5,4312.4,11.62896107]
[1757019790461,0.001,4312.5,4312.4,12.06296107]
[1757019790833,0.001,4312.5,4312.4,11.15726107]
[1757019791030,0.001,4312.5,4312.4,11.27326107]
[1757019792248,0.001,4312.5,4312.4,13.64326107]
[1757019796957,0.001,4312.5,4312.4,14.07726107]
[1757019797162,0.001,4312.5,4312.4,14.53546107]
[1757019798475,0.001,4312.5,4312.4,14.62841396]
[1757019800693,0.001,4312.5,4312.4,13.34036107]
[1757019800853,0.001,4312.5,4312.4,14.64011396]
[1757019801482,0.001,4312.5,4312.4,20.51953946]
[1757019803593,0.001,4312.5,4312.4,20.08553946]
[1757019803766,0.001,4312.5,4312.4,20.51953946]
[1757019808202,0.001,4312.5,4312.4,19.62733946]
[1757019809724,0.001,4312.5,4312.4,20.51953946]
[1757019812523,0.026,4312.8,4312.7,2.31873304]
[1757019812822,0.001,4313.0,4312.9,8.19805101]
[1757019813125,0.001,4313.0,4312.9,14.20565101]
[1757019813288,0.001,4313.0,4312.9,15.09785101]
[1757019813729,0.001,4313.0,4312.9,15.19078705]
[1757019813933,0.001,4313.0,4312.9,17.40552986]
[1757019816006,0.001,4313.0,4312.9,19.77552986]
[1757019817611,0.001,4313.0,4312.9,18.88332986]
[1757019818018,0.317,4313.0,4312.9,18.56872986]
[1757019820427,0.001,4313.0,4312.9,18.56872986]
[1757019820723,1.2316,4313.0,4312.9,12.68930436]
[1757019820907,1.2316,4313.0,4312.9,4.23656155]
[1757019821106,1.2316,4313.0,4312.9,8.10456155]
[1757019825950,1.2316,4313.0,4312.9,11.10456155]
[1757019827035,1.2316,4313.0,4312.9,4.23656155]
[1757019827238,1.2316,4313.0,4312.9,8.10356155]
[1757019831435,1.2316,4313.0,4312.9,4.23656155]
[1757019831637,1.73217023,4313.0,4312.9,8.10356155]
[1757019831939,1.2316,4313.0,4312.9,8.10356155]
[1757019832906,0.3017,4313.0,4312.9,8.10356155]
[1757019833110,0.001,4313.0,4312.9,8.90726155]
[1757019833307,0.001,4313.0,4312.9,9.34036155]
[1757019833916,0.001,4313.0,4312.9,8.84696155]
[1757019834722,0.001,4313.0,4312.9,8.41386155]
[1757019834934,0.001,4313.0,4312.9,8.10356155]
[1757019835730,0.3017,4313.0,4312.9,8.10356155]
[1757019836044,1.2316,4313.0,4312.9,8.10356155]
[1757019836811,1.2316,4313.0,4312.9,10.47356155]
[1757019837641,1.73227982,4313.0,4312.9,10.47356155]
[1757019838613,1.73227982,4313.0,4312.9,5.78493604]
[1757019839249,1.73227982,4313.0,4312.9,5.576]
[1757019839425,1.84827982,4313.0,4312.9,5.576]
[1757019840038,1.84827982,4313.0,4312.9,1.709]
[1757019840247,1.84827982,4313.0,4312.9,5.576]
[1757019840935,2.31862551,4312.9,4312.8,0.004]
[1757019841247,2.81930533,4312.9,4312.8,0.004]
[1757019841421,4.04990533,4312.9,4312.8,0.004]
[1757019848735,0.91737982,4312.9,4312.8,0.2909]
[1757019848935,0.61667982,4312.9,4312.8,0.2909]
[1757019849144,0.61667982,4312.9,4312.8,0.004]
[1757019849744,0.61667982,4312.9,4312.8,0.2909]
[1757019850276,0.61667982,4312.9,4312.8,0.004]
[1757019851148,0.92187982,4312.9,4312.8,0.004]
[1757019851568,1.38617982,4312.9,4312.8,0.22000426]
[1757019851768,0.61667982,4312.9,4312.8,0.50690426]
[1757019852158,0.001,4313.0,4312.8,3.75248354]
[1757019852478,0.001,4313.0,4312.9,0.21600426]
[1757019852653,0.50056519,4313.0,4312.9,0.21600426]
[1757019852976,0.50056519,4313.0,4312.9,0.50290426]
[1757019855708,0.80576519,4313.0,4312.9,0.21600426]
[1757019856409,0.50056519,4313.0,4312.9,0.21600426]
[1757019856611,0.50056519,4313.0,4312.9,0.96950426]
[1757019856915,0.50056519,4313.0,4312.9,3.90744818]
[1757019857681,0.50056519,4313.0,4312.9,7.77444818]
[1757019858085,0.50056519,4313.0,4312.9,7.77462996]
[1757019859518,0.001,4313.0,4312.9,10.89062996]
[1757019859718,0.001,4313.0,4312.9,11.39119515]
[1757019861483,0.001,4313.0,4312.9,18.3081998]
[1757019863615,0.001,4313.0,4312.9,19.1001998]
[1757019864420,0.001,4313.5,4313.4,2.31835674]
[1757019864592,0.001,4313.5,4313.4,15.16673099]
[1757019864794,0.001,4313.5,4313.4,15.14354743]
[1757019865015,0.001,4313.5,4313.4,16.35734743]
[1757019867219,0.001,4313.5,4313.4,16.45027052]
[1757019867517,0.001,4313.5,4313.4,18.3271405]
[1757019873327,0.001,4313.5,4313.4,21.3271405]
[1757019874328,0.001,4313.5,4313.4,21.32595835]
[1757019875122,0.001,4313.5,4313.4,20.86565835]
[1757019875299,0.001,4313.5,4313.4,23.69595835]
[1757019881948,1e-08,4313.8,4313.7,2.31819551]
[1757019882121,1e-08,4313.8,4313.7,14.05928932]
[1757019882326,1e-08,4313.8,4313.7,15.37440737]
[1757019882638,1e-08,4313.8,4313.7,15.4673227]
[1757019882854,1e-08,4313.8,4313.7,16.2593227]
[1757019887249,1e-08,4313.8,4313.7,15.3309227]
[1757019888154,1e-08,4313.8,4313.7,15.8183227]
[1757019888454,1e-08,4313.8,4313.7,16.2593227]
[1757019889028,1e-08,4313.8,4313.7,16.26011251]
[1757019889254,0.001,4314.2,4313.8,6.11014177]
[1757019889443,0.001,4314.2,4313.8,15.51084809]
[1757019890048,0.001,4314.2,4313.8,15.80474809]
[1757019890245,1e-08,4314.1,4314.0,2.3180343]
[1757019890556,1e-08,4314.1,4314.0,9.42100834]
[1757019890745,1e-08,4314.1,4314.0,9.807728]
[1757019890944,1e-08,4314.1,4314.0,12.16854741]
[1757019893148,1e-08,4314.1,4314.0,14.53854741]
[1757019893371,1e-08,4314.1,4314.0,14.53897626]
[1757019894145,1e-08,4314.1,4314.0,13.88937626]
[1757019894348,1e-08,4314.1,4314.0,12.96097626]
[1757019894547,0.001,4314.2,4314.1,2.31798057]
[1757019894786,0.001,4314.2,4314.1,9.39820312]
[1757019895079,0.203,4314.2,4314.1,9.39820312]
[1757019895380,0.6614,4314.2,4314.1,9.49112492]
[1757019896349,0.6654,4314.2,4314.1,9.49112492]
[1757019898264,0.6654,4314.2,4314.1,5.62712492]
[1757019898576,0.6614,4314.2,4314.1,9.49112492]
[1757019898748,0.6654,4314.2,4314.1,9.49112492]
[1757019899195,0.001,4314.2,4314.1,9.49112492]
[1757019899508,0.201,4314.2,4314.1,9.49112492]